[Event "Late-Titled-Tuesday-Blitz-January-30-2024"]
[Site "Chess.com"]
[Date "2024.01.30"]
[Round "10"]
[White "Matalon"]
[Black "karinachess1"]
[Result "1-0"]
[WhiteElo "2502"]
[BlackElo "2597"]
[TimeControl "180+1"]
[EndTime "15:55:06 PST"]
[Termination "Matalon won on time"]

1. e4 {[%clk 0:02:53.3]} 1... e5 {[%clk 0:02:59.9]} 2. Nf3 {[%clk 0:02:52.3]}
2... Nc6 {[%clk 0:03:00.4]} 3. Bb5 {[%clk 0:02:52.4]} 3... Nge7 {[%clk
0:03:00.3]} 4. Nc3 {[%clk 0:02:49.8]} 4... Ng6 {[%clk 0:02:58.5]} 5. d4 {[%clk
0:02:48.1]} 5... exd4 {[%clk 0:02:58.7]} 6. Nxd4 {[%clk 0:02:47.9]} 6... Nxd4
{[%clk 0:02:55.8]} 7. Qxd4 {[%clk 0:02:46.5]} 7... c6 {[%clk 0:02:56.2]} 8. Bc4
{[%clk 0:02:44.6]} 8... b5 {[%clk 0:02:56.3]} 9. Bb3 {[%clk 0:02:31.8]} 9... a5
{[%clk 0:02:47.1]} 10. a4 {[%clk 0:02:30]} 10... b4 {[%clk 0:02:47.3]} 11. Ne2
{[%clk 0:02:28]} 11... Ba6 {[%clk 0:02:46.9]} 12. Qe3 {[%clk 0:02:19.4]} 12...
Be7 {[%clk 0:02:19.3]} 13. O-O {[%clk 0:02:17.2]} 13... O-O {[%clk 0:02:19.6]}
14. Rd1 {[%clk 0:02:15.2]} 14... d6 {[%clk 0:02:13.2]} 15. Ng3 {[%clk
0:01:59.8]} 15... Qc7 {[%clk 0:02:05.4]} 16. Nf5 {[%clk 0:01:55.6]} 16... Rad8
{[%clk 0:02:05.4]} 17. Qg3 {[%clk 0:01:54.1]} 17... Bf6 {[%clk 0:01:44]} 18. Bg5
{[%clk 0:01:50.3]} 18... Bxg5 {[%clk 0:01:36.8]} 19. Qxg5 {[%clk 0:01:49.3]}
19... d5 {[%clk 0:01:25.4]} 20. exd5 {[%clk 0:01:33.7]} 20... cxd5 {[%clk
0:01:25.6]} 21. Bxd5 {[%clk 0:01:23.9]} 21... Qxc2 {[%clk 0:01:21.3]} 22. Bxf7+
{[%clk 0:01:16.9]} 22... Kxf7 {[%clk 0:01:12.6]} 23. Rxd8 {[%clk 0:01:11.9]}
23... Rxd8 {[%clk 0:01:12.6]} 24. Qxd8 {[%clk 0:01:04.3]} 24... Qxf5 {[%clk
0:01:12.5]} 25. Re1 {[%clk 0:01:01]} 25... Bc8 {[%clk 0:00:37]} 26. Qe8+ {[%clk
0:00:47.7]} 26... Kf6 {[%clk 0:00:37.3]} 27. Qd8+ {[%clk 0:00:43.4]} 27... Kf7
{[%clk 0:00:37.6]} 28. h4 {[%clk 0:00:29.6]} 28... Be6 {[%clk 0:00:33.5]} 29.
Qc7+ {[%clk 0:00:28.8]} 29... Ne7 {[%clk 0:00:33]} 30. Re5 {[%clk 0:00:25.5]}
30... Qf4 {[%clk 0:00:18.2]} 31. Qd6 {[%clk 0:00:22.6]} 31... Qf6 {[%clk
0:00:13.5]} 32. Rxa5 {[%clk 0:00:19.7]} 32... Nf5 {[%clk 0:00:07.8]} 33. Qc7+
{[%clk 0:00:18]} 33... Kg6 {[%clk 0:00:07.6]} 34. h5+ {[%clk 0:00:17.4]} 34...
Kh6 {[%clk 0:00:07]} 35. Qf4+ {[%clk 0:00:13.1]} 35... Qg5 {[%clk 0:00:06.6]}
36. Qxg5+ {[%clk 0:00:11.1]} 36... Kxg5 {[%clk 0:00:07.5]} 37. Rb5 {[%clk
0:00:10.7]} 37... b3 {[%clk 0:00:05.4]} 38. a5 {[%clk 0:00:10.4]} 38... Bc4
{[%clk 0:00:04.3]} 39. Rb4 {[%clk 0:00:09.6]} 39... Nd6 {[%clk 0:00:04.3]} 40.
Rb6 {[%clk 0:00:09.5]} 40... Ne4 {[%clk 0:00:02.9]} 41. a6 {[%clk 0:00:09.5]}
41... Bd5 {[%clk 0:00:01.2]} 42. a7 {[%clk 0:00:09.6]} 42... Nc5 {[%clk
0:00:01.7]} 43. Rb5 {[%clk 0:00:09.5]} 1-0

[Event "Late-Titled-Tuesday-Blitz-January-30-2024"]
[Site "Chess.com"]
[Date "2024.01.30"]
[Round "10"]
[White "jup1978"]
[Black "rcmz"]
[Result "0-1"]
[WhiteElo "2410"]
[BlackElo "2175"]
[TimeControl "180+1"]
[EndTime "15:55:06 PST"]
[Termination "rcmz won on time"]

1. d4 {[%clk 0:02:51.6]} 1... d6 {[%clk 0:02:58.4]} 2. Nf3 {[%clk 0:02:50.9]}
2... Nd7 {[%clk 0:02:58.4]} 3. c4 {[%clk 0:02:51.1]} 3... h6 {[%clk 0:02:58]} 4.
Nc3 {[%clk 0:02:49.4]} 4... g5 {[%clk 0:02:58]} 5. g3 {[%clk 0:02:49.3]} 5...
Bg7 {[%clk 0:02:58.1]} 6. Bg2 {[%clk 0:02:49.3]} 6... Nf8 {[%clk 0:02:58.3]} 7.
O-O {[%clk 0:02:47.9]} 7... c6 {[%clk 0:02:57.6]} 8. e4 {[%clk 0:02:45.9]} 8...
Ng6 {[%clk 0:02:51.4]} 9. Re1 {[%clk 0:02:43.9]} 9... Qc7 {[%clk 0:02:51]} 10.
Be3 {[%clk 0:02:43]} 10... Bg4 {[%clk 0:02:41.2]} 11. Qb3 {[%clk 0:02:37.4]}
11... Be6 {[%clk 0:02:26.4]} 12. d5 {[%clk 0:02:35.1]} 12... Bd7 {[%clk
0:02:25.6]} 13. c5 {[%clk 0:02:26.8]} 13... Nf6 {[%clk 0:02:10]} 14. cxd6 {[%clk
0:02:25.2]} 14... exd6 {[%clk 0:02:09.7]} 15. dxc6 {[%clk 0:01:55.6]} 15... bxc6
{[%clk 0:02:08.6]} 16. e5 {[%clk 0:01:51.9]} 16... dxe5 {[%clk 0:01:50.6]} 17.
Bc5 {[%clk 0:01:51.2]} 17... Be6 {[%clk 0:01:50.3]} 18. Qa4 {[%clk 0:01:44.3]}
18... Nd7 {[%clk 0:01:49.9]} 19. Ba3 {[%clk 0:01:36.9]} 19... Rb8 {[%clk
0:01:27.3]} 20. Rad1 {[%clk 0:01:34.1]} 20... f5 {[%clk 0:01:17.9]} 21. Bd6
{[%clk 0:01:30.5]} 21... Qb6 {[%clk 0:01:07.4]} 22. Bxb8 {[%clk 0:01:28.6]}
22... Nxb8 {[%clk 0:01:07.5]} 23. Rd6 {[%clk 0:00:56.9]} 23... Kf7 {[%clk
0:01:02.1]} 24. Red1 {[%clk 0:00:55.2]} 24... Re8 {[%clk 0:01:00.6]} 25. h4
{[%clk 0:00:38.7]} 25... g4 {[%clk 0:00:57.2]} 26. Nd2 {[%clk 0:00:36.4]} 26...
Bf8 {[%clk 0:00:49.1]} 27. Rd3 {[%clk 0:00:34.4]} 27... h5 {[%clk 0:00:41.6]}
28. Nc4 {[%clk 0:00:29.9]} 28... Qc7 {[%clk 0:00:39.3]} 29. Nd6+ {[%clk
0:00:28.9]} 29... Bxd6 {[%clk 0:00:38.8]} 30. Rxd6 {[%clk 0:00:29.8]} 30... Ne7
{[%clk 0:00:33.5]} 31. Qc2 {[%clk 0:00:16]} 31... Qb6 {[%clk 0:00:28.3]} 32. Na4
{[%clk 0:00:13.7]} 32... Qb5 {[%clk 0:00:25.2]} 33. Nc5 {[%clk 0:00:13.4]} 33...
Bc8 {[%clk 0:00:23.7]} 34. Bf1 {[%clk 0:00:13.3]} 34... Qb6 {[%clk 0:00:21.4]}
35. a3 {[%clk 0:00:10.6]} 35... Kg7 {[%clk 0:00:19.8]} 36. b4 {[%clk 0:00:10.6]}
36... Nd5 {[%clk 0:00:16]} 37. Qc1 {[%clk 0:00:10.4]} 37... f4 {[%clk 0:00:13]}
38. gxf4 {[%clk 0:00:09.5]} 38... Nxf4 {[%clk 0:00:12.1]} 39. Qc2 {[%clk
0:00:06.9]} 39... Rf8 {[%clk 0:00:07.8]} 40. Bg2 {[%clk 0:00:03.7]} 40... Bf5
{[%clk 0:00:07.7]} 41. Qc3 {[%clk 0:00:03.7]} 41... Ne2+ {[%clk 0:00:07.1]} 42.
Kh1 {[%clk 0:00:02.8]} 42... Nxc3 {[%clk 0:00:08]} 0-1

[Event "Late-Titled-Tuesday-Blitz-January-30-2024"]
[Site "Chess.com"]
[Date "2024.01.30"]
[Round "10"]
[White "zverr1"]
[Black "ATM622"]
[Result "1-0"]
[WhiteElo "2570"]
[BlackElo "2448"]
[TimeControl "180+1"]
[EndTime "15:55:07 PST"]
[Termination "zverr1 won on time"]

1. e4 {[%clk 0:02:57.4]} 1... c6 {[%clk 0:02:57.8]} 2. d4 {[%clk 0:02:48.9]}
2... d5 {[%clk 0:02:57.8]} 3. Nc3 {[%clk 0:02:48.6]} 3... dxe4 {[%clk
0:02:57.4]} 4. Nxe4 {[%clk 0:02:49.5]} 4... Bf5 {[%clk 0:02:57.2]} 5. Ng3 {[%clk
0:02:49.8]} 5... Bg6 {[%clk 0:02:57.8]} 6. h4 {[%clk 0:02:50.5]} 6... h6 {[%clk
0:02:57.9]} 7. N1e2 {[%clk 0:02:50.5]} 7... Nd7 {[%clk 0:02:54.5]} 8. Nf4 {[%clk
0:02:50.5]} 8... Bh7 {[%clk 0:02:55]} 9. Bc4 {[%clk 0:02:49.7]} 9... Ngf6 {[%clk
0:02:54.4]} 10. c3 {[%clk 0:02:49]} 10... e6 {[%clk 0:02:53.2]} 11. Nfh5 {[%clk
0:02:49.4]} 11... Nxh5 {[%clk 0:02:50]} 12. Nxh5 {[%clk 0:02:50.3]} 12... Nf6
{[%clk 0:02:50]} 13. Bf4 {[%clk 0:02:48.7]} 13... Nxh5 {[%clk 0:02:40.9]} 14.
Qxh5 {[%clk 0:02:49.6]} 14... Bg6 {[%clk 0:02:18.3]} 15. Qg4 {[%clk 0:02:41.5]}
15... h5 {[%clk 0:01:58]} 16. Qg3 {[%clk 0:02:33.3]} 16... Qd7 {[%clk 0:01:54]}
17. a4 {[%clk 0:02:18.6]} 17... Be7 {[%clk 0:01:52.5]} 18. Be5 {[%clk
0:02:11.8]} 18... O-O {[%clk 0:01:31.6]} 19. Bd3 {[%clk 0:02:08]} 19... Qe8
{[%clk 0:01:28.6]} 20. O-O {[%clk 0:01:38.3]} 20... f5 {[%clk 0:01:23.5]} 21.
Bf4 {[%clk 0:01:29.6]} 21... Bh7 {[%clk 0:01:11]} 22. Rfe1 {[%clk 0:01:26.5]}
22... Bf6 {[%clk 0:01:05.4]} 23. Bc4 {[%clk 0:01:22.5]} 23... Qd8 {[%clk
0:00:52.7]} 24. Rxe6 {[%clk 0:01:18.8]} 24... Kh8 {[%clk 0:00:48.8]} 25. Bg5
{[%clk 0:00:50.8]} 25... Bg8 {[%clk 0:00:39.9]} 26. Bxf6 {[%clk 0:00:50.3]}
26... Rxf6 {[%clk 0:00:39]} 27. Rxf6 {[%clk 0:00:49.3]} 27... Qxf6 {[%clk
0:00:39.9]} 28. Bxg8 {[%clk 0:00:48.4]} 28... Kxg8 {[%clk 0:00:35.5]} 29. Re1
{[%clk 0:00:48.2]} 29... Rf8 {[%clk 0:00:31.6]} 30. Qf4 {[%clk 0:00:46.6]} 30...
Kh7 {[%clk 0:00:23.2]} 31. Re5 {[%clk 0:00:46]} 31... Kg8 {[%clk 0:00:13.4]} 32.
g3 {[%clk 0:00:44.3]} 32... Kh7 {[%clk 0:00:13.2]} 33. a5 {[%clk 0:00:37.9]}
33... Qf7 {[%clk 0:00:10.3]} 34. Qg5 {[%clk 0:00:34.3]} 34... Kg8 {[%clk
0:00:05.5]} 35. Re7 {[%clk 0:00:32.7]} 35... Qf6 {[%clk 0:00:05.6]} 36. Qxf6
{[%clk 0:00:32.8]} 36... Rxf6 {[%clk 0:00:06.1]} 37. Rxb7 {[%clk 0:00:33.6]}
37... Rf7 {[%clk 0:00:06.4]} 38. Rxf7 {[%clk 0:00:32.5]} 38... Kxf7 {[%clk
0:00:07.3]} 39. c4 {[%clk 0:00:31.3]} 39... Ke6 {[%clk 0:00:07.4]} 40. f4 {[%clk
0:00:30.3]} 40... Kd6 {[%clk 0:00:05.2]} 41. Kf2 {[%clk 0:00:30.3]} 41... c5
{[%clk 0:00:04.3]} 42. d5 {[%clk 0:00:24.7]} 42... a6 {[%clk 0:00:03.8]} 43. Ke3
{[%clk 0:00:24.3]} 43... g6 {[%clk 0:00:03.7]} 44. Kd3 {[%clk 0:00:24.3]} 44...
Ke7 {[%clk 0:00:03.8]} 45. Kc3 {[%clk 0:00:24.9]} 45... Kd6 {[%clk 0:00:03.8]}
46. b4 {[%clk 0:00:25.8]} 46... g5 {[%clk 0:00:01.1]} 47. bxc5+ {[%clk
0:00:24.9]} 1-0

[Event "Late-Titled-Tuesday-Blitz-January-30-2024"]
[Site "Chess.com"]
[Date "2024.01.30"]
[Round "10"]
[White "NovakRatko"]
[Black "Arlo2024"]
[Result "1-0"]
[WhiteElo "2396"]
[BlackElo "2267"]
[TimeControl "180+1"]
[EndTime "15:55:07 PST"]
[Termination "NovakRatko won on time"]

1. d4 {[%clk 0:02:57.7]} 1... Nf6 {[%clk 0:02:59.5]} 2. c4 {[%clk 0:02:58.2]}
2... c5 {[%clk 0:02:59.8]} 3. dxc5 {[%clk 0:02:58.3]} 3... Na6 {[%clk
0:02:59.4]} 4. Be3 {[%clk 0:02:58.4]} 4... e6 {[%clk 0:02:54.2]} 5. a3 {[%clk
0:02:58.5]} 5... Bxc5 {[%clk 0:02:29.5]} 6. Bxc5 {[%clk 0:02:57.3]} 6... Nxc5
{[%clk 0:02:30.4]} 7. b4 {[%clk 0:02:57.9]} 7... Nce4 {[%clk 0:02:17.9]} 8. f3
{[%clk 0:02:57.1]} 8... Ng4 {[%clk 0:01:54.3]} 9. Qd4 {[%clk 0:02:52.2]} 9...
Ngf2 {[%clk 0:01:19.2]} 10. fxe4 {[%clk 0:02:49.8]} 10... Nxh1 {[%clk
0:01:19.1]} 11. Qxg7 {[%clk 0:02:49.8]} 11... Rf8 {[%clk 0:01:14.3]} 12. g3
{[%clk 0:02:49.6]} 12... a5 {[%clk 0:00:59.5]} 13. Bg2 {[%clk 0:02:33.3]} 13...
axb4 {[%clk 0:00:59]} 14. axb4 {[%clk 0:02:32.6]} 14... Rxa1 {[%clk 0:00:53.3]}
15. Qxa1 {[%clk 0:02:33.5]} 15... Qb6 {[%clk 0:00:52.9]} 16. c5 {[%clk
0:02:07.6]} 16... Qxb4+ {[%clk 0:00:49.2]} 17. Kf1 {[%clk 0:02:07.7]} 17...
Nxg3+ {[%clk 0:00:32.2]} 18. hxg3 {[%clk 0:02:08.6]} 18... Qxc5 {[%clk
0:00:32.3]} 19. Nd2 {[%clk 0:01:56.7]} 19... Rg8 {[%clk 0:00:28.7]} 20. Nb3
{[%clk 0:01:37.4]} 20... Qe3 {[%clk 0:00:23.2]} 21. Qa8 {[%clk 0:00:54.3]} 21...
Kd8 {[%clk 0:00:20.9]} 22. Qa5+ {[%clk 0:00:50.5]} 22... b6 {[%clk 0:00:19.1]}
23. Qb4 {[%clk 0:00:42.1]} 23... Qxg3 {[%clk 0:00:18.8]} 24. Qxb6+ {[%clk
0:00:41.1]} 24... Ke8 {[%clk 0:00:18.6]} 25. Nf3 {[%clk 0:00:26.9]} 25... Qxg2+
{[%clk 0:00:18.5]} 26. Ke1 {[%clk 0:00:27.6]} 26... Qh1+ {[%clk 0:00:16.6]} 27.
Kd2 {[%clk 0:00:27.1]} 27... Qb1 {[%clk 0:00:14.9]} 28. Qb8 {[%clk 0:00:20.8]}
28... Qb2+ {[%clk 0:00:14.3]} 29. Ke3 {[%clk 0:00:20.9]} 29... Ke7 {[%clk
0:00:11]} 30. Qb4+ {[%clk 0:00:21]} 30... Kd8 {[%clk 0:00:08.8]} 31. Qb6+ {[%clk
0:00:20.9]} 31... Ke8 {[%clk 0:00:08.7]} 32. Qb8 {[%clk 0:00:20.8]} 32... Ke7
{[%clk 0:00:08.5]} 33. Qb4+ {[%clk 0:00:20.1]} 33... d6 {[%clk 0:00:08.5]} 34.
Nbd4 {[%clk 0:00:17]} 34... Qxb4 {[%clk 0:00:07.7]} 35. Nc6+ {[%clk 0:00:17.6]}
35... Kd7 {[%clk 0:00:05.8]} 36. Nxb4 {[%clk 0:00:18.5]} 36... Bb7 {[%clk
0:00:05.3]} 37. Nd3 {[%clk 0:00:05.8]} 37... Rg4 {[%clk 0:00:03]} 38. Nf2 {[%clk
0:00:05]} 1-0

[Event "Late-Titled-Tuesday-Blitz-January-30-2024"]
[Site "Chess.com"]
[Date "2024.01.30"]
[Round "10"]
[White "TigrVShlyape"]
[Black "Mops_2004"]
[Result "1-0"]
[WhiteElo "2962"]
[BlackElo "2774"]
[TimeControl "180+1"]
[EndTime "15:55:08 PST"]
[Termination "TigrVShlyape won on time"]

1. e4 {[%clk 0:03:00.9]} 1... g6 {[%clk 0:03:00.2]} 2. d4 {[%clk 0:02:59.9]}
2... Bg7 {[%clk 0:03:00.5]} 3. c3 {[%clk 0:02:59.7]} 3... d6 {[%clk 0:03:00.7]}
4. Nf3 {[%clk 0:02:59.6]} 4... Nf6 {[%clk 0:03:00.4]} 5. Bd3 {[%clk 0:02:59.9]}
5... O-O {[%clk 0:03:01]} 6. O-O {[%clk 0:02:59.5]} 6... Nc6 {[%clk 0:03:01.7]}
7. h3 {[%clk 0:02:58.3]} 7... e5 {[%clk 0:03:01.8]} 8. Re1 {[%clk 0:02:58.6]}
8... Re8 {[%clk 0:02:52.2]} 9. d5 {[%clk 0:02:45.2]} 9... Ne7 {[%clk 0:02:50.3]}
10. c4 {[%clk 0:02:45.4]} 10... Nd7 {[%clk 0:02:39.7]} 11. Nc3 {[%clk
0:02:44.4]} 11... h6 {[%clk 0:02:38.5]} 12. Rb1 {[%clk 0:02:41.7]} 12... a5
{[%clk 0:02:36.7]} 13. a3 {[%clk 0:02:41.7]} 13... Rf8 {[%clk 0:02:26]} 14. b4
{[%clk 0:02:39.9]} 14... f5 {[%clk 0:02:25.5]} 15. Qc2 {[%clk 0:02:07.9]} 15...
b6 {[%clk 0:02:19.3]} 16. Nd2 {[%clk 0:01:44.6]} 16... Kh8 {[%clk 0:02:16.7]}
17. Nb3 {[%clk 0:01:43.9]} 17... Nf6 {[%clk 0:02:00.9]} 18. f3 {[%clk 0:01:30]}
18... Nh5 {[%clk 0:01:52.1]} 19. c5 {[%clk 0:01:28.1]} 19... c6 {[%clk
0:01:08.3]} 20. cxb6 {[%clk 0:00:50.6]} 20... axb4 {[%clk 0:01:07.9]} 21. axb4
{[%clk 0:00:45.2]} 21... cxd5 {[%clk 0:00:55.3]} 22. Nxd5 {[%clk 0:00:37.7]}
22... Nxd5 {[%clk 0:00:55]} 23. exd5 {[%clk 0:00:37.9]} 23... Qxb6+ {[%clk
0:00:55]} 24. Be3 {[%clk 0:00:36.9]} 24... Qd8 {[%clk 0:00:54.6]} 25. Na5 {[%clk
0:00:34.3]} 25... Bd7 {[%clk 0:00:50]} 26. Nc6 {[%clk 0:00:33.8]} 26... Qh4
{[%clk 0:00:46]} 27. b5 {[%clk 0:00:32.3]} 27... e4 {[%clk 0:00:34.1]} 28. Be2
{[%clk 0:00:21.5]} 28... Bxc6 {[%clk 0:00:27.6]} 29. bxc6 {[%clk 0:00:20.5]}
29... Be5 {[%clk 0:00:28.2]} 30. Kh1 {[%clk 0:00:07.7]} 30... Ra3 {[%clk
0:00:15.6]} 31. Qc1 {[%clk 0:00:06.2]} 31... exf3 {[%clk 0:00:10.7]} 32. Bxf3
{[%clk 0:00:06.1]} 32... Qg3 {[%clk 0:00:11.4]} 33. Kg1 {[%clk 0:00:04.3]} 33...
Qh2+ {[%clk 0:00:11]} 34. Kf1 {[%clk 0:00:04.2]} 34... Ng3+ {[%clk 0:00:07.3]}
35. Kf2 {[%clk 0:00:04.6]} 35... Ne4+ {[%clk 0:00:07.5]} 36. Ke2 {[%clk
0:00:04.9]} 36... Ra2+ {[%clk 0:00:06.3]} 37. Kd3 {[%clk 0:00:03.6]} 37... Nc3
{[%clk 0:00:05.9]} 38. Ra1 {[%clk 0:00:02.9]} 38... Rxg2 {[%clk 0:00:03.9]} 39.
Bd4 {[%clk 0:00:02.2]} 39... Bxd4 {[%clk 0:00:02.9]} 40. Qxh6+ {[%clk
0:00:02.3]} 40... Kg8 {[%clk 0:00:02.2]} 41. Ra7 {[%clk 0:00:02]} 1-0

[Event "Late-Titled-Tuesday-Blitz-January-30-2024"]
[Site "Chess.com"]
[Date "2024.01.30"]
[Round "10"]
[White "jinxy2009"]
[Black "ImportedItalianMaple"]
[Result "1-0"]
[WhiteElo "2258"]
[BlackElo "2467"]
[TimeControl "180+1"]
[EndTime "15:55:08 PST"]
[Termination "jinxy2009 won by checkmate"]

1. e4 {[%clk 0:02:59]} 1... g6 {[%clk 0:02:58.4]} 2. d4 {[%clk 0:02:57.1]} 2...
Bg7 {[%clk 0:02:58.7]} 3. Nc3 {[%clk 0:02:56.6]} 3... d5 {[%clk 0:02:59.1]} 4.
e5 {[%clk 0:02:56.6]} 4... c5 {[%clk 0:02:53.9]} 5. f4 {[%clk 0:02:55.3]} 5...
cxd4 {[%clk 0:02:53.1]} 6. Qxd4 {[%clk 0:02:54.6]} 6... e6 {[%clk 0:02:42.5]} 7.
Bb5+ {[%clk 0:02:54.2]} 7... Bd7 {[%clk 0:02:41.9]} 8. Bxd7+ {[%clk 0:02:52.8]}
8... Qxd7 {[%clk 0:02:41.1]} 9. Nf3 {[%clk 0:02:52.7]} 9... Nc6 {[%clk
0:02:40.8]} 10. Qd1 {[%clk 0:02:49.1]} 10... Nge7 {[%clk 0:02:40.6]} 11. O-O
{[%clk 0:02:48.6]} 11... O-O {[%clk 0:02:38.3]} 12. Be3 {[%clk 0:02:47]} 12...
Rab8 {[%clk 0:02:33.5]} 13. Nd4 {[%clk 0:02:44.5]} 13... Nxd4 {[%clk 0:02:31.6]}
14. Bxd4 {[%clk 0:02:44.9]} 14... b5 {[%clk 0:02:31.4]} 15. Ne2 {[%clk 0:02:43]}
15... Rfc8 {[%clk 0:02:29.1]} 16. Qd3 {[%clk 0:02:31.3]} 16... a5 {[%clk
0:02:26.7]} 17. g4 {[%clk 0:02:17.7]} 17... Qc6 {[%clk 0:02:15.7]} 18. c3 {[%clk
0:02:14]} 18... Qc4 {[%clk 0:02:15.2]} 19. Qxc4 {[%clk 0:02:07.3]} 19... Rxc4
{[%clk 0:02:16.1]} 20. Ng3 {[%clk 0:02:05.6]} 20... b4 {[%clk 0:02:12.4]} 21. b3
{[%clk 0:02:02.7]} 21... Rc6 {[%clk 0:02:09.4]} 22. Rac1 {[%clk 0:02:00]} 22...
Rbc8 {[%clk 0:02:08.2]} 23. Rf3 {[%clk 0:01:58.8]} 23... a4 {[%clk 0:01:32.2]}
24. bxa4 {[%clk 0:01:56.3]} 24... Rc4 {[%clk 0:01:32.1]} 25. Ne2 {[%clk
0:01:52.2]} 25... Nc6 {[%clk 0:01:26.1]} 26. Rff1 {[%clk 0:01:44.9]} 26... bxc3
{[%clk 0:01:11.3]} 27. Bxc3 {[%clk 0:01:30.1]} 27... Rxa4 {[%clk 0:01:09.4]} 28.
Ba1 {[%clk 0:01:21.1]} 28... Rxa2 {[%clk 0:01:03.1]} 29. Nd4 {[%clk 0:01:16.5]}
29... Ra6 {[%clk 0:00:48.6]} 30. Rc2 {[%clk 0:00:58]} 30... Ne7 {[%clk
0:00:48.1]} 31. Rxc8+ {[%clk 0:00:53.4]} 31... Nxc8 {[%clk 0:00:48.6]} 32. Rc1
{[%clk 0:00:53]} 32... Ne7 {[%clk 0:00:47.1]} 33. Bc3 {[%clk 0:00:51.9]} 33...
f6 {[%clk 0:00:36.1]} 34. Bb4 {[%clk 0:00:50.8]} 34... fxe5 {[%clk 0:00:25.7]}
35. fxe5 {[%clk 0:00:25]} 35... Bxe5 {[%clk 0:00:25.9]} 36. Nf3 {[%clk
0:00:25.1]} 36... Bd6 {[%clk 0:00:26.6]} 37. Bxd6 {[%clk 0:00:21.4]} 37... Rxd6
{[%clk 0:00:27.5]} 38. Rc7 {[%clk 0:00:21.6]} 38... Nc6 {[%clk 0:00:22.8]} 39.
Ng5 {[%clk 0:00:20.2]} 39... Nd8 {[%clk 0:00:14.1]} 40. Nxh7 {[%clk 0:00:19.8]}
40... e5 {[%clk 0:00:11.6]} 41. g5 {[%clk 0:00:15.3]} 41... Nf7 {[%clk
0:00:07.6]} 42. Nf6+ {[%clk 0:00:15.1]} 42... Kg7 {[%clk 0:00:07.2]} 43. h4
{[%clk 0:00:12.7]} 43... Kf8 {[%clk 0:00:03.2]} 44. Rc8+ {[%clk 0:00:11.6]}
44... Kg7 {[%clk 0:00:01.6]} 45. Rg8# {[%clk 0:00:11.6]} 1-0

[Event "Late-Titled-Tuesday-Blitz-January-30-2024"]
[Site "Chess.com"]
[Date "2024.01.30"]
[Round "10"]
[White "vesalhamedinia"]
[Black "ameetghasi100"]
[Result "0-1"]
[WhiteElo "2494"]
[BlackElo "2737"]
[TimeControl "180+1"]
[EndTime "15:55:10 PST"]
[Termination "ameetghasi100 won on time"]

1. d4 {[%clk 0:03:00.2]} 1... g6 {[%clk 0:03:00.2]} 2. c4 {[%clk 0:03:00.5]}
2... Nf6 {[%clk 0:03:01]} 3. Nf3 {[%clk 0:03:01.4]} 3... Bg7 {[%clk 0:03:01.6]}
4. Nc3 {[%clk 0:03:01.6]} 4... O-O {[%clk 0:03:02.5]} 5. Bf4 {[%clk 0:03:02.4]}
5... d6 {[%clk 0:03:03.4]} 6. e3 {[%clk 0:03:02.9]} 6... Nc6 {[%clk 0:03:04.1]}
7. Be2 {[%clk 0:03:03.4]} 7... a6 {[%clk 0:03:04.1]} 8. O-O {[%clk 0:03:03.4]}
8... Rb8 {[%clk 0:03:04.6]} 9. h3 {[%clk 0:03:03.6]} 9... Bd7 {[%clk 0:03:04.9]}
10. Rc1 {[%clk 0:03:03.7]} 10... Qe8 {[%clk 0:03:05.1]} 11. a3 {[%clk
0:03:03.9]} 11... e5 {[%clk 0:03:05]} 12. Bg5 {[%clk 0:02:56.7]} 12... h6 {[%clk
0:03:03.9]} 13. Bxf6 {[%clk 0:02:53.5]} 13... Bxf6 {[%clk 0:03:04.8]} 14. Nd5
{[%clk 0:02:54.3]} 14... Bd8 {[%clk 0:03:05.2]} 15. b4 {[%clk 0:02:53.9]} 15...
f5 {[%clk 0:03:04.4]} 16. b5 {[%clk 0:02:52.9]} 16... Ne7 {[%clk 0:03:02.9]} 17.
dxe5 {[%clk 0:02:48.5]} 17... dxe5 {[%clk 0:02:57.9]} 18. Nxe5 {[%clk
0:02:47.7]} 18... Nxd5 {[%clk 0:02:58.4]} 19. Qxd5+ {[%clk 0:02:45.3]} 19... Be6
{[%clk 0:02:58.4]} 20. Qd2 {[%clk 0:02:40.7]} 20... Bf6 {[%clk 0:02:58.6]} 21.
Nf3 {[%clk 0:02:40.1]} 21... Rd8 {[%clk 0:02:57.7]} 22. Qc2 {[%clk 0:02:37.9]}
22... Qe7 {[%clk 0:02:50.8]} 23. a4 {[%clk 0:02:36]} 23... Qc5 {[%clk 0:02:49]}
24. Rfd1 {[%clk 0:02:35.1]} 24... a5 {[%clk 0:02:37.2]} 25. Rxd8 {[%clk
0:02:33]} 25... Rxd8 {[%clk 0:02:38.1]} 26. Rd1 {[%clk 0:02:33.5]} 26... Rxd1+
{[%clk 0:02:29.2]} 27. Qxd1 {[%clk 0:02:34.4]} 27... Kg7 {[%clk 0:02:24.9]} 28.
Nd4 {[%clk 0:02:33]} 28... Bf7 {[%clk 0:02:24.3]} 29. Qd3 {[%clk 0:02:23.8]}
29... Qb4 {[%clk 0:02:22.3]} 30. Qc2 {[%clk 0:02:15.6]} 30... Qe1+ {[%clk
0:02:20.6]} 31. Bf1 {[%clk 0:02:09.2]} 31... Qa1 {[%clk 0:02:19.3]} 32. Nb3
{[%clk 0:02:01.5]} 32... Qe1 {[%clk 0:02:18.7]} 33. Qd2 {[%clk 0:01:41.2]} 33...
Qb1 {[%clk 0:01:29.8]} 34. Qd3 {[%clk 0:01:21.3]} 34... Qe1 {[%clk 0:01:26.4]}
35. g3 {[%clk 0:01:03.9]} 35... Qb4 {[%clk 0:01:22.3]} 36. h4 {[%clk 0:00:49]}
36... h5 {[%clk 0:01:17.3]} 37. Kg2 {[%clk 0:00:33.2]} 37... Qxa4 {[%clk
0:00:53.8]} 38. Nc5 {[%clk 0:00:32.6]} 38... Qb4 {[%clk 0:00:51.3]} 39. Nxb7
{[%clk 0:00:25.7]} 39... a4 {[%clk 0:00:50.9]} 40. Nd8 {[%clk 0:00:22.1]} 40...
a3 {[%clk 0:00:32.1]} 41. Nxf7 {[%clk 0:00:16.5]} 41... a2 {[%clk 0:00:26.4]}
42. Qd7 {[%clk 0:00:04.9]} 42... Qe7 {[%clk 0:00:24.6]} 0-1